bitfinex/quotes_ETHUSD_20251017
["timestamp","ask_amount","ask_price","bid_price","bid_amount"]
[1760661478651,3.28296003,3928.1,3928.0,0.002]
[1760661478852,5.86896003,3928.1,3928.0,0.002]
[1760661480468,0.3032,3928.1,3928.0,0.002]
[1760661480667,2.587,3928.1,3928.0,0.002]
[1760661480875,0.001,3928.1,3928.0,0.002]
[1760661481198,2.587,3928.1,3928.0,2.54782484]
[1760661481973,2.587,3928.1,3928.0,0.002]
[1760661482354,0.001,3928.1,3928.0,2.54782484]
[1760661482657,2.587,3928.1,3928.0,2.54782484]
[1760661483251,0.001,3928.1,3928.0,2.54782484]
[1760661483491,2.587,3928.1,3928.0,2.54782484]
[1760661484803,0.001,3928.1,3928.0,2.54782484]
[1760661484957,2.587,3928.1,3928.0,2.54782484]
[1760661485363,2.587,3928.1,3928.0,0.002]
[1760661486956,3.03,3928.1,3928.0,0.002]
[1760661487157,3.3331,3928.1,3928.0,0.002]
[1760661488495,2.8901,3928.1,3928.0,0.002]
[1760661488694,3.3331,3928.1,3928.0,0.002]
[1760661490069,2.8901,3928.1,3928.0,0.002]
[1760661490283,2.587,3928.1,3928.0,0.002]
[1760661490682,2.586,3928.1,3928.0,0.002]
[1760661494185,0.001,3928.1,3928.0,0.002]
[1760661494404,7.59941239,3928.1,3928.0,0.002]
[1760661494989,10.14517242,3928.1,3928.0,0.002]
[1760661495167,11.26189937,3928.1,3928.0,0.002]
[1760661498384,8.67689937,3928.1,3928.0,0.002]
[1760661498590,11.26189937,3928.1,3928.0,0.002]
[1760661499021,12.98989937,3928.1,3928.0,0.002]
[1760661499522,10.44413934,3928.1,3928.0,0.002]
[1760661499712,12.98989937,3928.1,3928.0,0.002]
[1760661500419,10.00113934,3928.1,3928.0,0.002]
[1760661500717,10.44413934,3928.1,3928.0,0.002]
[1760661502220,7.41613934,3928.1,3928.0,0.002]
[1760661502427,8.27313934,3928.1,3928.0,0.002]
[1760661502825,8.72213934,3928.1,3928.0,0.002]
[1760661503694,8.62002963,3928.1,3928.0,0.002]
[1760661505826,11.16578966,3928.1,3928.0,0.002]
[1760661506325,11.26790797,3928.1,3928.0,0.002]
[1760661507209,12.99590797,3928.1,3928.0,0.002]
[1760661507723,1.11773555,3928.1,3928.0,0.002]
[1760661507926,3.70273555,3928.1,3928.0,0.002]
[1760661508429,4.15173555,3928.1,3928.0,0.002]
[1760661508995,6.69749558,3928.1,3928.0,0.002]
[1760661509928,8.42549558,3928.1,3928.0,0.002]
[1760661510631,5.87973555,3928.1,3928.0,0.002]
[1760661510810,4.15173555,3928.1,3928.0,0.002]
[1760661511932,6.69749558,3928.1,3928.0,0.002]
[1760661512501,8.42549558,3928.1,3928.0,0.002]
[1760661516644,9.05909558,3928.1,3928.0,0.002]
[1760661516940,9.31367806,3928.1,3928.0,0.002]
[1760661517143,2.54601929,3927.7,3927.6,0.002]
[1760661517314,12.20026156,3927.7,3927.6,0.002]
[1760661517516,12.64926156,3927.7,3927.6,0.002]
[1760661517732,21.64868556,3927.7,3927.6,0.002]
[1760661517950,2.5469218,3926.4,3925.4,2.54749452]
[1760661518113,4.57041239,3926.1,3925.4,2.54749257]
[1760661518314,2.585,3926.0,3925.4,2.54749257]
[1760661518636,2.585,3926.0,3925.2,2.54764088]
[1760661518823,2.585,3926.0,3925.3,2.54756289]
[1760661519435,2.585,3926.0,3924.5,3.0153147]
[1760661519436,2.585,3926.0,3925.1,2.54769347]
[1760661519611,4.57041239,3925.8,3924.5,0.46725552]
[1760661519814,4.57041239,3925.8,3924.7,2.54793304]
[1760661519815,2.585,3925.7,3924.7,2.54793304]
[1760661520249,2.585,3925.7,3924.6,1.728]
[1760661520550,2.585,3925.7,3925.4,2.547502]
[1760661520716,2.585,3925.7,3925.3,2.54755057]
[1760661521054,2.585,3925.6,3925.5,2.54738428]
[1760661521351,2.585,3925.6,3924.8,1.728]
[1760661521749,2.585,3925.6,3925.5,2.54744618]
[1760661523219,2.585,3925.6,3925.5,3.05694464]
[1760661523837,2.585,3925.6,3924.8,1.728]
[1760661524145,2.585,3925.6,3924.7,2.76742882]
[1760661524146,2.585,3925.6,3924.9,2.54780369]
[1760661524348,2.585,3925.6,3924.7,0.21952555]
[1760661524349,2.585,3925.6,3925.0,4.59589009]
[1760661524666,2.585,3925.6,3924.8,1.728]
[1760661524952,0.449,3926.4,3925.4,2.54751108]
[1760661524953,2.585,3925.5,3925.4,2.54751108]
[1760661525150,2.585,3925.5,3924.8,4.27588872]
[1760661525349,2.585,3925.5,3925.4,2.54751108]
[1760661526284,2.585,3925.5,3924.9,0.90658267]
[1760661526443,2.585,3925.5,3925.2,2.54761424]
[1760661526828,2.585,3925.5,3925.3,2.54751765]
[1760661527356,2.585,3925.5,3925.4,2.54751108]
[1760661527858,2.585,3925.5,3924.6,4.27603037]
[1760661528046,2.585,3925.5,3925.3,2.54754776]
[1760661528247,2.585,3925.5,3925.4,0.002]
[1760661528824,3.034,3925.5,3925.4,0.002]
[1760661529480,5.58144618,3925.5,3925.4,0.002]
[1760661529969,5.68362997,3925.5,3925.4,0.002]
[1760661530165,6.96376653,3925.5,3925.4,0.002]
[1760661531346,4.41632035,3925.5,3925.4,0.002]
[1760661532971,7.59736653,3925.5,3925.4,0.002]
[1760661533773,9.32536653,3925.5,3925.4,0.002]
[1760661533973,9.58011114,3925.5,3925.4,0.002]
[1760661536738,17.53785614,3925.5,3925.4,0.002]
[1760661537172,13.62786114,3925.5,3925.4,0.002]
[1760661537374,9.32536653,3925.5,3925.4,0.002]
[1760661537667,9.58011114,3925.5,3925.4,0.002]
[1760661538270,13.79742114,3925.5,3925.4,0.002]
[1760661538579,11.72453114,3925.5,3925.4,0.002]
[1760661538777,18.19453114,3925.5,3925.4,0.002]
[1760661539238,20.50030814,3925.5,3925.4,0.002]
[1760661540277,33.11077114,3925.5,3925.4,0.002]
[1760661540897,26.38451214,3925.5,3925.4,0.002]
[1760661541211,27.46504114,3925.5,3925.4,0.002]
[1760661541397,27.23904114,3925.5,3925.4,0.002]
[1760661542320,32.70827014,3925.5,3925.4,0.002]
[1760661542872,3.43610233,3925.1,3925.0,0.002]
[1760661543097,19.82918228,3925.1,3925.0,0.002]
[1760661543272,28.79849128,3925.1,3925.0,0.002]
[1760661543672,28.9007145,3925.1,3925.0,0.002]
[1760661544123,28.9007145,3925.1,3924.6,0.002]
[1760661544124,3.18156544,3924.7,3924.6,0.002]
[1760661544431,13.06651821,3924.7,3924.6,0.002]
[1760661544709,13.51311821,3924.7,3924.6,0.002]
[1760661545072,19.98311821,3924.7,3924.6,0.002]
[1760661545380,28.25152821,3924.7,3924.6,0.002]
[1760661545588,3.18221482,3923.7,3923.3,0.002]
[1760661545795,10.33862721,3923.7,3923.3,0.002]
[1760661546302,12.1688635,3923.7,3923.3,0.002]
[1760661547706,0.39979868,3923.7,3923.3,0.002]
[1760661547907,0.39979868,3923.7,3923.4,2.54875641]
[1760661548082,2.98579868,3923.7,3923.4,2.54875641]
[1760661548478,2.586,3923.7,3923.3,0.002]
[1760661548811,0.39976795,3924.3,3923.4,2.54879111]
[1760661549013,2.586,3924.2,3923.4,2.54879111]
[1760661549224,2.586,3924.1,3923.5,2.54873705]
[1760661549510,2.586,3924.1,3923.6,2.5506403]
[1760661549708,0.39976795,3924.3,3923.7,2.54860393]
[1760661549885,2.586,3924.2,3923.7,2.54860393]
[1760661550073,0.39976795,3924.3,3923.6,0.002]
[1760661550408,2.586,3924.2,3924.0,2.54840641]
[1760661550576,2.586,3924.2,3923.9,2.54848033]
[1760661550773,2.586,3924.2,3923.6,2.55062228]
[1760661551008,2.586,3924.2,3923.6,0.002]
[1760661551206,3.59642886,3924.2,3923.6,0.002]
[1760661551376,4.57041239,3924.1,3923.6,0.002]
[1760661551577,2.54848192,3924.0,3923.6,0.002]
[1760661551903,2.586,3923.9,3923.6,0.002]
[1760661552308,5.13449426,3923.9,3923.6,0.002]
[1760661552489,6.49657216,3923.9,3923.6,0.002]
[1760661552986,2.54855428,3923.8,3923.6,0.002]
[1760661553187,3.9480779,3923.9,3923.6,0.002]
[1760661553503,0.39976795,3924.3,3923.6,0.002]
[1760661553699,2.348,3924.2,3923.6,4.57241239]
[1760661553899,2.586,3924.1,3924.0,2.54841997]
[1760661554109,0.1272,3924.0,3923.9,4.57041239]
[1760661554309,3.46696981,3925.2,3924.3,2.54816591]
[1760661554496,3.46696981,3925.2,3923.9,5.02765363]
[1760661554497,2.586,3925.1,3924.6,2.5480247]
[1760661554831,0.40859321,3925.9,3925.3,2.54757149]
[1760661554978,0.40859321,3925.9,3924.8,4.57041239]
[1760661555184,2.586,3925.8,3925.3,2.5475167]
[1760661555407,2.586,3925.8,3925.4,2.54750509]
[1760661555580,0.1272,3925.1,3924.1,0.76623361]
[1760661555789,2.586,3925.0,3924.9,2.54783561]
[1760661555995,2.586,3925.0,3924.8,2.54783942]
[1760661556194,2.586,3925.0,3924.9,2.54783561]
[1760661557425,0.1272,3924.9,3924.0,1.728]
[1760661557630,2.586,3925.0,3924.1,0.56272317]
[1760661557631,0.1272,3924.6,3924.1,0.56272317]
[1760661557833,0.2258,3925.9,3925.0,2.54770825]
[1760661557997,2.585,3925.8,3925.0,2.54770825]
[1760661558415,1.03321081,3926.3,3924.2,1.728]
[1760661558416,2.585,3925.7,3924.2,1.728]
[1760661558622,2.585,3925.6,3925.5,2.54744618]
[1760661558798,2.585,3925.6,3925.3,2.54751956]
[1760661559015,2.585,3925.6,3925.4,2.54747456]
[1760661559204,0.39961081,3926.3,3924.3,2.54822516]
[1760661559416,2.585,3926.2,3924.4,0.42762252]
[1760661559796,2.585,3926.2,3925.5,2.54738924]
[1760661560234,2.585,3926.2,3925.6,2.54735019]
[1760661560533,2.585,3926.1,3925.8,2.54723277]
[1760661560708,0.39961081,3926.3,3925.9,2.54714562]
[1760661560913,0.39961081,3926.3,3926.2,2.546992]
[1760661561243,2.98461081,3926.3,3926.2,2.546992]
[1760661562624,0.39961081,3926.3,3926.2,2.546992]
[1760661562841,2.98461081,3926.3,3926.2,2.546992]
[1760661563239,0.002,3926.2,3925.2,0.76601644]
[1760661563402,0.002,3926.2,3924.8,1.728]
[1760661563605,0.4657,3926.2,3924.0,0.001]
[1760661563806,0.4657,3926.2,3925.2,2.54758097]
[1760661564101,0.4657,3926.2,3924.6,2.54797168]
[1760661564423,0.002,3926.2,3924.5,2.54804384]
[1760661564636,2.585,3926.1,3925.6,2.54733299]
[1760661564830,2.585,3926.1,3925.4,2.54744949]
[1760661565145,2.585,3926.1,3924.8,0.025479]
[1760661565440,0.002,3926.2,3924.4,0.001]
[1760661565441,0.002,3926.2,3924.9,0.02547835]
[1760661565642,0.002,3926.2,3925.9,2.54717777]
[1760661565942,0.746,3926.1,3925.9,2.54717777]
[1760661566234,0.746,3926.1,3925.7,2.54725353]
[1760661566608,0.746,3926.1,3925.3,2.54756196]
[1760661566809,0.4637,3926.0,3923.7,2.585]
[1760661567003,0.002,3926.2,3923.7,2.585]
[1760661567004,0.002,3926.2,3925.5,2.54738794]
[1760661567230,1.302,3925.9,3924.4,0.6346]
[1760661567433,1.302,3925.9,3925.5,2.54744387]
[1760661567627,1.302,3925.9,3925.6,2.54736492]
[1760661568141,1.302,3925.9,3925.7,2.54730449]
[1760661568313,0.002,3926.2,3925.0,0.0254777]
[1760661568512,0.1272,3925.7,3925.6,2.54738129]
[1760661568744,0.1272,3925.7,3925.6,2.80211942]
[1760661568919,2.7112,3925.7,3924.7,1.728]
[1760661569122,0.1272,3925.4,3925.3,2.54757598]
[1760661569441,0.002,3926.2,3926.1,2.54705687]
[1760661569645,2.586,3926.2,3926.1,2.54705687]
[1760661569847,2.586,3926.2,3925.9,2.54712686]
[1760661570040,2.586,3926.2,3925.8,2.54725151]
[1760661570041,0.1272,3925.9,3925.8,2.54725151]
[1760661571632,0.1272,3925.9,3925.3,1.728]
[1760661571829,0.1272,3925.7,3925.6,2.54738129]
[1760661572916,0.1272,3925.7,3925.4,2.54744918]
[1760661573151,2.584,3925.6,3925.4,2.54750756]
[1760661573324,2.584,3925.5,3925.4,2.54750756]
[1760661575943,2.584,3925.5,3925.3,2.54757162]
[1760661576148,0.1272,3925.4,3925.3,2.54757162]
[1760661577130,2.7112,3925.4,3925.3,2.54757162]
[1760661577644,2.7112,3925.4,3925.3,2.54757598]
[1760661584068,0.1272,3925.4,3925.3,2.54757598]
[1760661584250,2.7112,3925.4,3925.3,3.05965103]
[1760661584658,0.1272,3925.4,3925.3,4.81312678]
[1760661584965,0.002,3925.5,3925.4,2.54751108]
[1760661585135,0.002,3925.5,3925.4,4.27551108]
[1760661591160,0.002,3925.5,3925.4,4.30098619]
[1760661591362,0.002,3925.5,3925.4,5.57305275]
[1760661591561,0.002,3925.5,3925.4,5.54757764]
[1760661594077,0.002,3925.5,3925.4,6.18117764]
[1760661594258,0.002,3925.5,3925.4,6.30837764]
[1760661594900,1e-08,3926.2,3926.1,3.18065687]
[1760661595190,1e-08,3926.2,3926.1,21.24984952]
[1760661595390,1e-08,3926.2,3926.1,21.22437896]
[1760661595691,1e-08,3926.2,3926.1,21.32647903]
[1760661597283,1e-08,3926.2,3926.1,21.68231017]
[1760661597490,1e-08,3926.2,3926.1,22.17522381]
[1760661597658,1e-08,3926.2,3926.1,13.92901671]
[1760661598289,0.002,3927.2,3927.1,4.27440829]
[1760661598491,0.002,3927.2,3927.1,10.40082595]
[1760661598685,0.002,3927.2,3927.1,11.64742843]
[1760661598990,0.002,3927.2,3927.1,12.33402843]
[1760661601911,0.002,3927.2,3927.1,14.34506743]
[1760661602113,0.002,3927.2,3927.1,14.91732143]
[1760661602292,0.002,3927.2,3927.1,12.33402843]
[1760661604016,0.002,3927.2,3927.1,16.43833243]
[1760661604517,0.002,3927.2,3927.1,12.33402843]
[1760661604720,0.57663622,3930.0,3928.3,2.54563042]
[1760661604894,1e-08,3929.0,3928.9,2.54524167]
[1760661605094,1e-08,3929.0,3928.9,12.34804766]
[1760661605292,1e-08,3929.0,3928.9,12.95619525]
[1760661605494,1e-08,3929.0,3928.9,13.9259703]
[1760661605694,0.2189,3930.0,3929.7,2.54472351]
[1760661605893,0.2189,3930.0,3929.9,9.73994759]
[1760661606222,0.2189,3930.0,3929.9,4.27259401]
[1760661606783,0.8569114,3930.3,3930.2,2.54439977]
[1760661607090,0.8569114,3930.3,3930.2,11.31919174]
[1760661607292,0.8569114,3930.3,3930.2,11.29374775]
[1760661607514,0.8569114,3930.3,3930.2,11.28403127]
[1760661608420,0.8569114,3930.3,3930.2,13.86603127]
[1760661608619,0.215,3931.0,3930.9,2.54394667]
[1760661608823,0.215,3931.0,3930.9,8.00158377]
[1760661609000,0.215,3931.0,3930.9,2.54394667]
[1760661609198,0.6727,3931.0,3930.9,2.54394667]
[1760661609719,0.6727,3931.0,3930.8,0.215]
[1760661609920,0.6727,3931.0,3930.1,1.728]
[1760661610140,0.4577,3930.9,3930.8,2.54401139]
[1760661611006,0.4577,3930.9,3930.7,2.54406132]
[1760661611216,0.215,3931.0,3930.9,2.54394667]
[1760661611730,0.6727,3931.0,3930.9,2.54394667]
[1760661613294,0.4577,3931.5,3931.4,2.54362313]
[1760661613638,0.01,3932.0,3931.9,2.54329967]
[1760661614429,0.4677,3932.0,3931.9,2.54329967]
[1760661616865,0.4677,3932.0,3931.6,0.1264]
[1760661617042,0.4677,3932.0,3931.7,2.54342382]
[1760661617243,0.4577,3931.9,3931.7,2.54342382]
[1760661617429,0.01,3932.0,3931.7,2.54342382]
[1760661617634,0.01,3932.0,3931.4,0.1264]
[1760661617835,0.4577,3931.9,3931.7,1.728]
[1760661618036,0.01,3932.0,3931.9,4.27129967]
[1760661618926,1.943,3934.1,3931.9,4.27129967]
[1760661618927,0.215,3934.1,3932.3,3.17664096]
[1760661619280,0.6727,3933.4,3932.3,18.61100454]
[1760661619577,0.6727,3933.4,3932.3,18.58557414]
[1760661619871,0.6727,3933.4,3933.3,2.54239442]
[1760661620175,0.215,3934.1,3932.4,4.27097629]
[1760661620176,0.215,3933.5,3933.2,2.54245906]
[1760661620544,0.6727,3933.5,3933.4,2.54232979]
[1760661620745,0.4577,3933.4,3932.5,2.589]
[1760661620933,0.4577,3933.3,3932.9,1.728]
[1760661621131,0.4577,3933.2,3931.1,2.54378823]
[1760661621330,3.0636,3933.1,3932.3,2.54300138]
[1760661621559,0.2255,3932.4,3932.3,1.728]
[1760661621739,0.2255,3932.4,3932.0,2.54322129]
[1760661621740,0.7001,3932.4,3931.8,2.54332768]
[1760661622055,0.2255,3933.0,3931.9,13.68093318]
[1760661622260,0.2255,3933.0,3932.0,3.12152566]
[1760661622455,0.2255,3933.0,3932.6,2.54284383]
[1760661622632,0.4746,3932.9,3932.7,2.56820133]
[1760661622849,0.4746,3932.8,3932.7,2.56821013]
[1760661623251,0.4746,3932.8,3932.0,3.09609332]
[1760661623252,0.4746,3932.8,3932.2,2.54304788]
[1760661623438,0.4746,3932.7,3932.3,2.54301612]
[1760661623637,0.4746,3932.6,3932.1,0.0254317]
[1760661623865,0.4746,3932.5,3932.3,2.54297995]
[1760661624031,0.4746,3932.4,3932.3,2.54297995]
[1760661625638,0.4746,3932.8,3932.7,2.54276533]
[1760661626658,0.4746,3932.8,3932.5,2.54290147]
[1760661626875,0.4746,3932.7,3932.6,2.54283602]
[1760661627068,0.4746,3932.7,3931.7,1.728]
[1760661627069,0.4746,3932.7,3932.5,2.54289605]
[1760661627266,0.4746,3932.6,3932.5,2.54289605]
[1760661628176,0.4746,3932.6,3932.0,0.1264]
[1760661628473,0.4746,3932.6,3931.7,1.728]
[1760661628474,0.1264,3932.4,3932.1,2.54311033]
[1760661628776,0.4746,3932.3,3932.1,2.54311033]
[1760661629072,0.4746,3932.2,3932.1,4.27111033]
[1760661629277,3.0656,3932.2,3930.9,2.54389804]
[1760661629439,0.1264,3931.9,3931.4,1.728]
[1760661629644,0.1264,3931.9,3931.7,4.27142905]
[1760661629645,0.2255,3931.8,3931.7,4.27142905]
[1760661630571,0.7001,3931.8,3931.7,4.27142905]
[1760661631778,0.7001,3931.8,3931.7,1.728]
[1760661632174,0.7001,3931.8,3931.7,4.27142905]
[1760661633146,0.2255,3931.8,3931.7,4.27142905]
[1760661633486,3.2931,3931.8,3931.7,1.728]
[1760661633775,2.592,3931.8,3931.7,4.27142905]
[1760661633941,0.1264,3931.9,3931.7,1.728]
[1760661634147,3.0666,3931.8,3931.7,4.27141155]
[1760661634861,0.4746,3931.8,3931.7,4.27141155]
[1760661635179,3.0666,3931.8,3931.7,1.728]
[1760661635380,3.0666,3931.8,3930.0,2.54449554]
[1760661635381,3.40845,3931.8,3930.5,0.1272]
[1760661635540,0.1264,3931.0,3930.5,0.1272]
[1760661635746,0.1264,3931.0,3929.6,0.1272]
[1760661635747,0.1272,3930.5,3929.6,0.1272]
[1760661636081,0.2255,3929.7,3929.6,2.54478827]
[1760661636265,3.4193,3929.7,3929.6,2.54478827]
[1760661636671,0.8273,3929.7,3929.6,2.54478827]
[1760661636979,3.4193,3929.7,3929.6,2.54478827]
[1760661637175,0.3527,3929.7,3929.6,2.54478827]
[1760661637363,3.4193,3929.7,3929.5,2.54484467]
[1760661637564,0.4746,3929.6,3929.0,0.1272]
[1760661637763,3.0666,3929.6,3929.5,2.54485303]
[1760661638746,0.4746,3929.6,3929.5,2.54485303]
[1760661639087,3.0666,3929.6,3929.5,2.54485303]
[1760661639390,0.4746,3929.6,3929.5,2.54485303]
[1760661639682,0.4746,3929.6,3929.0,0.1272]
[1760661639885,0.4746,3929.6,3927.9,13.68293318]
[1760661639886,0.7001,3930.6,3930.5,2.54420557]
[1760661640085,0.2255,3930.8,3930.7,2.5440548]
[1760661640285,0.7001,3930.8,3930.7,2.5440548]
[1760661640456,3.2991,3930.8,3930.7,2.5440548]
[1760661640656,0.1272,3930.7,3930.6,2.54414084]
[1760661640981,0.6018,3930.7,3930.6,2.54414084]
[1760661641364,3.2008,3930.7,3930.6,2.54414084]
[1760661641566,0.1272,3930.7,3930.6,2.54414084]
[1760661641800,2.7262,3930.7,3930.6,2.54414084]
[1760661642401,3.2008,3930.7,3930.6,2.54414084]
[1760661642699,2.7262,3930.7,3930.6,2.54414084]
[1760661642900,0.2255,3931.4,3930.6,4.80642247]
[1760661643067,0.1264,3931.1,3931.0,2.54388196]
[1760661643263,0.601,3931.1,3931.0,2.54388196]
[1760661643660,0.601,3931.1,3930.1,1.728]
[1760661643933,0.4746,3931.0,3930.8,2.54395024]
[1760661644211,0.7001,3930.9,3930.8,2.54401139]
[1760661644407,0.2255,3930.9,3930.8,2.54401139]
[1760661644584,0.4746,3931.3,3931.2,2.54375254]
[1760661644765,3.0776,3931.3,3931.2,2.54375254]
[1760661644975,0.4746,3931.3,3931.2,2.54375254]
[1760661645178,3.0776,3931.3,3931.2,2.54375254]
[1760661646191,0.4746,3931.3,3931.2,2.54375254]
[1760661646393,0.2255,3931.4,3931.3,2.54368783]
[1760661646593,0.2255,3931.8,3931.7,2.54342905]
[1760661646819,0.4746,3932.2,3931.8,2.54336436]
[1760661646988,0.7001,3932.2,3932.1,2.54317031]
[1760661647196,2.4431,3932.2,3932.1,2.54317031]
[1760661648119,3.3021,3932.2,3932.1,2.54317031]
[1760661648441,0.7001,3932.2,3932.1,2.54317031]
[1760661648722,2.8275,3932.2,3932.1,2.54317031]
[1760661649081,3.3021,3932.2,3932.1,2.54317031]
[1760661649300,0.7001,3932.2,3932.1,2.54317031]
[1760661649510,2.8275,3932.2,3932.1,2.54317031]
[1760661649909,0.2255,3932.2,3932.1,2.54317031]
[1760661650112,0.1264,3932.3,3932.2,2.54310564]
[1760661650315,2.7284,3932.3,3932.2,2.54310564]
[1760661651689,3.202,3932.3,3932.2,2.54310564]
[1760661652321,3.202,3932.3,3931.4,1.728]
[1760661652512,3.202,3932.3,3932.1,2.54312982]
[1760661652719,2.602,3932.3,3932.2,2.54310564]
[1760661652942,2.602,3932.3,3931.5,0.1264]
[1760661653091,0.2146,3931.6,3931.5,2.54355843]
[1760661653287,0.001,3932.4,3931.6,1.728]
[1760661653549,0.001,3932.4,3932.3,2.54304096]
[1760661653706,0.942,3932.4,3932.3,2.54304096]
[1760661654034,0.001,3932.4,3932.3,2.54304096]
[1760661654220,2.601,3932.4,3932.3,2.54304096]
[1760661654620,3.0746,3932.4,3932.3,2.54304096]
[1760661654934,3.0746,3932.4,3932.1,0.002]
[1760661654935,3.38206,3932.4,3932.1,0.002]
[1760661655233,3.0766,3932.3,3932.1,0.002]
[1760661655621,0.4736,3932.2,3932.1,0.002]
[1760661657603,3.0786,3932.2,3932.1,0.002]
[1760661658328,3.0786,3932.2,3932.1,2.54517031]
[1760661659915,3.0786,3932.2,3932.1,0.002]
[1760661660115,3.38656,3932.2,3932.1,0.002]
[1760661661327,3.0786,3932.2,3932.1,0.002]
[1760661662062,0.001,3932.4,3932.3,2.54304096]
[1760661662222,2.605,3932.4,3932.3,2.54304096]
[1760661662424,3.0728,3932.4,3932.1,0.002]
[1760661662640,0.4678,3932.3,3932.1,0.002]
[1760661662953,0.4678,3932.3,3932.1,2.5451531]
[1760661663161,2.605,3932.4,3932.2,2.54310533]
[1760661663320,2.605,3932.4,3932.2,2.5431051]
[1760661663521,2.605,3932.4,3932.3,2.54304096]
[1760661663522,0.001,3932.4,3932.3,2.54304096]
[1760661663826,3.0738,3932.4,3932.2,2.54309611]
[1760661664153,0.001,3932.4,3932.3,2.54304096]
[1760661664322,2.443,3932.4,3932.3,2.54304096]
[1760661664517,0.001,3932.4,3932.3,3.07729177]
[1760661664771,0.966,3932.4,3932.3,4.80529177]
[1760661665059,0.966,3932.4,3932.3,4.77986137]
[1760661665355,0.001,3932.4,3932.3,4.77986137]
[1760661665650,0.001,3932.4,3932.3,18.61262495]
[1760661665856,0.001,3932.4,3932.3,18.58719455]
[1760661667821,0.001,3932.4,3932.3,4.90626137]
[1760661668026,0.001,3932.4,3932.3,4.27104096]
[1760661668222,0.4688,3932.4,3932.3,1.728]
[1760661668545,0.1264,3932.3,3932.1,0.002]
[1760661668746,0.4678,3932.3,3932.1,0.002]
[1760661668948,0.4678,3932.2,3932.1,0.002]
[1760661670961,0.1264,3932.2,3932.1,2.54517031]
[1760661671339,0.001,3932.4,3932.3,2.54304096]
[1760661671545,2.615,3932.4,3932.1,0.002]
[1760661671843,2.615,3932.4,3932.3,4.27104096]
[1760661672052,2.615,3932.4,3932.3,4.95266146]
[1760661672369,0.001,3932.4,3932.3,4.95266146]
[1760661673339,0.4688,3932.4,3932.3,1.728]
[1760661673580,0.4688,3932.4,3932.1,0.002]
[1760661673863,2.614,3932.3,3932.2,4.27110564]
[1760661674230,2.614,3932.3,3932.2,1.728]
[1760661674431,3.3433,3932.3,3932.1,0.002]
[1760661675065,2.8755,3932.3,3932.1,0.002]
[1760661675268,0.4678,3932.2,3932.1,0.002]
[1760661678280,5.37250564,3932.2,3932.1,0.002]
[1760661678592,0.6336,3932.1,3931.7,0.002]
[1760661678746,2.77696436,3931.8,3931.7,0.002]
[1760661678942,5.38996436,3931.8,3931.7,0.002]
[1760661679156,5.85776436,3931.8,3931.7,0.002]
[1760661679366,6.76122429,3931.8,3931.7,0.002]
[1760661680259,7.39482429,3931.8,3931.7,0.002]
[1760661680459,1.60485993,3931.8,3931.7,0.002]
[1760661680776,3.3214,3931.8,3931.7,0.002]
[1760661681629,5.86476436,3931.8,3931.7,0.002]
[1760661682063,3.3214,3931.8,3931.7,0.002]
[1760661685168,0.2336,3931.8,3931.7,0.002]
[1760661685369,0.6817,3932.1,3931.7,0.002]
[1760661685571,0.001,3932.4,3931.7,0.002]
[1760661685750,0.001,3932.4,3931.7,2.54542905]
[1760661685751,0.1264,3931.8,3931.7,2.54542905]
[1760661686079,1.2524,3931.8,3931.7,3.0543204]
[1760661687392,1.2524,3931.8,3931.7,0.002]
[1760661688174,1.2524,3931.8,3931.7,2.54542905]
[1760661688365,1.2524,3931.8,3931.7,0.002]
[1760661690139,1.7161,3931.8,3931.7,0.002]
[1760661690540,4.25946436,3931.8,3931.7,0.002]
[1760661690748,3.31917307,3931.8,3931.7,0.002]
[1760661691077,2.617,3931.8,3931.7,0.002]
[1760661692084,3.0807,3931.8,3931.7,0.002]
[1760661692402,2.617,3931.8,3931.7,0.002]
[1760661694881,3.0807,3931.8,3931.7,0.002]
[1760661695284,5.62406436,3931.8,3931.7,0.002]
[1760661695596,6.2083708,3931.8,3931.7,0.002]
[1760661696393,3.66500644,3931.8,3931.7,0.002]
[1760661696799,6.2083708,3931.8,3931.7,0.002]
[1760661698489,6.8419708,3931.8,3931.7,0.002]
[1760661700187,6.2043708,3931.8,3931.7,0.002]
[1760661700397,3.66100644,3931.8,3931.7,0.002]
[1760661703219,0.58430644,3931.8,3931.7,0.002]
[1760661703381,2.61,3931.8,3931.7,0.002]
[1760661704013,3.0737,3931.8,3931.7,0.002]
[1760661707185,5.61706436,3931.8,3931.7,0.002]
[1760661707608,3.0737,3931.8,3931.7,0.002]
[1760661708020,2.61,3931.8,3931.7,0.002]
[1760661708223,3.78373074,3931.8,3931.7,0.002]
[1760661709503,6.3270951,3931.8,3931.7,0.002]
[1760661709720,3.78373074,3931.8,3931.7,0.002]
[1760661710238,6.3270951,3931.8,3931.7,0.002]
[1760661710538,6.9606951,3931.8,3931.7,0.002]
[1760661711038,8.6886951,3931.8,3931.7,0.002]
[1760661711195,8.6886951,3931.8,3931.3,0.002]
[1760661711196,0.6336,3931.5,3931.3,0.002]
[1760661711393,5.78422313,3931.4,3931.3,0.002]
[1760661711628,6.24062313,3931.4,3931.3,0.002]
[1760661711922,7.96862313,3931.4,3931.3,0.002]
[1760661712338,8.22298544,3931.4,3931.3,0.002]
[1760661712537,9.41413701,3931.4,3931.3,0.002]
[1760661713525,6.0963747,3931.4,3931.3,0.002]
[1760661713688,9.1607747,3931.4,3931.3,0.002]
[1760661714710,9.41513701,3931.4,3931.3,0.002]